lending/lending_fUSD_20240410
["ID","MTS","AMOUNT","RATE_DAILY","PERIOD"]
[322070637,1712741440952,-500.0,0.00020545,2]
[322070638,1712741440963,-288.35174633,0.00020545,2]
[322070639,1712741440973,-500.0,0.00020545,2]
[322070640,1712741440983,-500.0,0.00020545,2]
[322070641,1712741440992,-500.0,0.00020545,2]
[322070642,1712741441001,-500.0,0.00020545,2]
[322070643,1712741441013,-500.0,0.00020545,2]
[322070644,1712741441022,-500.0,0.00020545,2]
[322070645,1712741441031,-500.0,0.00020545,2]
[322070646,1712741441039,-500.0,0.00020545,2]
[322070647,1712741441048,-500.0,0.00020545,2]
[322070648,1712741441057,-500.0,0.00020545,2]
[322070649,1712741441067,-500.0,0.00020545,2]
[322070650,1712741441078,-500.0,0.00020545,2]
[322070651,1712741441088,-500.0,0.00020545,2]
[322070652,1712741441099,-305647.44926183,0.00020546,2]
[322070653,1712741441111,-500.0,0.0002055,2]
[322070654,1712741441122,-500.0,0.0002055,2]
[322070655,1712741441132,-325.96424031,0.0002055,2]
[322070656,1712741441142,-500.0,0.0002055,2]
[322070657,1712741441151,-500.0,0.0002055,2]
[322070658,1712741441162,-500.0,0.0002055,2]
[322070659,1712741441172,-186.88704286,0.0002055,2]
[322070660,1712741441182,-500.0,0.0002055,2]
[322070661,1712741441191,-3031.32136936,0.00020616,2]
[322070662,1712741441202,-150.0,0.000207,2]
[322070663,1712741441211,-493.103005,0.00020703,2]
[322070664,1712741441221,-500.0,0.00020703,2]
[322070665,1712741441231,-500.0,0.00020703,2]
[322070666,1712741441241,-500.0,0.00020703,2]
[322070667,1712741441250,-435.57693431,0.00020703,2]
[322070668,1712741441263,-706.29344,0.0002079,2]
[322070669,1712741441272,-174.12907946,0.000208,2]
[322070670,1712741441281,-151.23,0.00020809,2]
[322070671,1712741441290,-244.92685052,0.00020819,2]
[322070672,1712741441299,-581.36030621,0.00020819,2]
[322070673,1712741441308,-500.0,0.00020819,2]
[322070674,1712741441316,-500.0,0.00020819,2]
[322070675,1712741441326,-500.0,0.00020819,2]
[322070676,1712741441335,-500.0,0.00020819,2]
[322070677,1712741441345,-500.0,0.00020819,2]
[322070678,1712741441356,-500.0,0.00020819,2]
[322070679,1712741441366,-500.0,0.00020819,2]
[322070680,1712741441376,-500.0,0.00020819,2]
[322070681,1712741441385,-500.0,0.00020819,2]
[322070682,1712741441394,-562.95883849,0.00020819,2]
[322070683,1712741441404,-1394.2,0.00020819,2]
[322070684,1712741441413,-500.0,0.00020819,2]
[322070685,1712741441422,-500.0,0.00020819,2]
[322070686,1712741441431,-500.0,0.00020819,2]
[322070687,1712741441443,-500.0,0.00020819,2]
[322070688,1712741441453,-500.0,0.00020819,2]
[322070689,1712741441462,-2169.83,0.00020819,2]
[322070690,1712741441472,-500.0,0.00020819,2]
[322070691,1712741441482,-500.0,0.00020819,2]
[322070692,1712741441493,-229.03958186,0.00020819,2]
[322070693,1712741441504,-500.0,0.00020819,2]
[322070694,1712741441514,-500.0,0.00020819,2]
[322070695,1712741441523,-856.91,0.00020819,2]
[322070696,1712741441532,-500.0,0.00020819,2]
[322070697,1712741441541,-500.0,0.00020819,2]
[322070698,1712741441550,-500.0,0.00020819,2]
[322070699,1712741441559,-500.0,0.00020819,2]
[322070700,1712741441568,-500.0,0.00020819,2]
[322070701,1712741441577,-500.0,0.00020819,2]
[322070702,1712741441586,-202.74234599,0.00020819,2]
[322070703,1712741441595,-500.0,0.00020819,2]
[322070704,1712741441605,-500.0,0.00020819,2]
[322070705,1712741441614,-546.74,0.00020819,2]
[322070706,1712741441623,-500.0,0.00020819,2]
[322070707,1712741441632,-638.76117492,0.00020819,2]
[322070708,1712741441641,-153.31090973,0.00020819,2]
[322070709,1712741441651,-500.0,0.00020819,2]
[322070710,1712741441660,-500.0,0.00020819,2]
[322070711,1712741441669,-354.11574747,0.00020819,2]
[322070712,1712741441678,-500.0,0.00020819,2]
[322070713,1712741441687,-569.71745286,0.00020819,2]
[322070714,1712741441696,-500.0,0.00020819,2]
[322070715,1712741441705,-500.0,0.00020819,2]
[322070716,1712741441715,-500.0,0.00020819,2]
[322070717,1712741441724,-625.93479513,0.00020819,2]
[322070718,1712741441733,-390.20854595,0.00020819,2]
[322070719,1712741441742,-500.0,0.00020819,2]
[322070720,1712741441751,-500.0,0.00020819,2]
[322070721,1712741441761,-500.0,0.00020819,2]
[322070722,1712741441770,-500.0,0.00020819,2]
[322070723,1712741441780,-500.0,0.00020819,2]
[322070724,1712741441789,-500.0,0.00020819,2]
[322070725,1712741441797,-386.36647195,0.00020824,2]
[322070726,1712741441807,-500.0,0.00020824,2]
[322070727,1712741441816,-500.0,0.00020824,2]
[322070728,1712741441825,-643.30904942,0.00020824,2]
[322070729,1712741441836,-500.0,0.00020824,2]
[322070730,1712741441845,-164.01287638,0.00020824,2]
[322070731,1712741441854,-174.12907944,0.0002085,2]
[322070732,1712741441863,-11140.94299539,0.000209,2]
[322070733,1712741441872,-174.12907944,0.000209,2]
[322070734,1712741441881,-3331.0,0.000209,2]
[322070735,1712741441890,-180.00658197,0.000209,2]
[322070736,1712741441899,-2644.48399,0.000209,2]
[322070737,1712741441908,-158.37092542,0.000209,2]
[322070738,1712741441917,-154.56262463,0.000209,2]
[322070739,1712741441927,-1000.0,0.00020906,2]
[322070740,1712741441936,-966.0,0.00020938,2]
[322070741,1712741441945,-1388.0,0.00020938,2]
[322070742,1712741441954,-182.284,0.00020938,2]
[322070743,1712741441963,-460.0,0.00020938,2]
[322070744,1712741441972,-1259.0,0.00020938,2]
[322070745,1712741441981,-539.0,0.00020938,2]
[322070746,1712741441991,-321.29783834,0.00020977,2]
[322070747,1712741442000,-500.0,0.00020977,2]
[322070748,1712741442013,-605.97912446,0.00020977,2]
[322070749,1712741442022,-2742.86309064,0.0002098,2]
[322070750,1712741442033,-154.56262454,0.00020987,2]
[322070751,1712741442042,-151.23,0.0002099,2]
[322070752,1712741442052,-151.23,0.0002099,2]
[322070753,1712741442061,-151.23,0.0002099,2]
[322070754,1712741442070,-206.98143139,0.0002099,2]
[322070755,1712741442079,-206.45698079,0.00020999,2]
[322070756,1712741442089,-155.0,0.00020999,2]
[322070757,1712741442098,-173.91631471,0.00020999,2]
[322070758,1712741442107,-300.0,0.00020999,2]
[322070759,1712741442116,-300.0,0.00020999,2]
[322070760,1712741442125,-300.0,0.00020999,2]
[322070761,1712741442136,-300.0,0.00020999,2]
[322070762,1712741442145,-300.0,0.00020999,2]
[322070763,1712741442154,-300.0,0.00020999,2]
[322070764,1712741442163,-353.66857191,0.00020999,2]
[322070765,1712741442172,-681986.30372525,0.00021,2]
[322070766,1712741442186,-6129.87583853,0.00021,2]
[322070767,1712741442197,-9257.40000601,0.00021,2]
[322070768,1712741442208,-1506.5916824,0.00021,2]
[322070769,1712741442220,-422.78763471,0.00021,2]
[322070770,1712741442232,-1054.22888284,0.00021,2]
[322070771,1712741442241,-714.96210186,0.00021,2]
[322070772,1712741442251,-155.0,0.00021,2]
[322070773,1712741442266,-250.0,0.00021,3]
[322070774,1712741442275,-38977.073921,0.0002101,2]
[322070775,1712741442285,-158.57509179,0.00021024,2]
[322070776,1712741442294,-450.72564752,0.00021024,2]
[322070777,1712741442303,-445.59848386,0.00021024,2]
[322070778,1712741442313,-344.13732937,0.00021024,2]
[322070779,1712741442322,-181.99034006,0.00021024,2]
[322070780,1712741442331,-156.12730211,0.00021024,2]
[322070781,1712741442340,-500.0,0.00021093,2]
[322070782,1712741442349,-500.0,0.00021093,2]
[322070783,1712741442358,-500.0,0.00021093,2]
[322070784,1712741442367,-500.0,0.00021093,2]
[322070785,1712741442376,-500.0,0.00021093,2]
[322070786,1712741442386,-500.0,0.00021093,2]
[322070787,1712741442395,-500.0,0.00021093,2]
[322070788,1712741442404,-500.0,0.00021093,2]
[322070789,1712741442413,-1394.2,0.00021093,2]
[322070790,1712741442422,-500.0,0.00021093,2]
[322070791,1712741442431,-500.0,0.00021093,2]
[322070792,1712741442441,-500.0,0.00021093,2]
[322070793,1712741442452,-500.0,0.00021093,2]
[322070794,1712741442461,-500.0,0.00021093,2]
[322070795,1712741442470,-2169.83,0.00021093,2]
[322070796,1712741442479,-500.0,0.00021093,2]
[322070797,1712741442490,-500.0,0.00021093,2]
[322070798,1712741442499,-337.67529774,0.00021093,2]
[322070799,1712741442528,-500.0,0.00020545,2]
[322070800,1712741442537,-162.32470226,0.00021093,2]
[322070801,1712741442546,-500.0,0.00021093,2]
[322070802,1712741442555,-856.91,0.00021093,2]
[322070803,1712741442565,-500.0,0.00021093,2]
[322070804,1712741442574,-500.0,0.00021093,2]
[322070805,1712741442583,-554.24180898,0.00021093,2]
[322070806,1712741442593,-32.67348876,0.00021093,2]
[322070807,1712741442613,-467.32651124,0.00021093,2]
[322070808,1712741442622,-424.11592269,0.00021093,2]
[322070809,1712741442631,-500.0,0.00021093,2]
[322070810,1712741442640,-500.0,0.00021093,2]
[322070811,1712741442649,-500.0,0.00021093,2]
[322070812,1712741442658,-546.74,0.00021093,2]
[322070813,1712741442713,-157.03746176,0.00021093,2]
[322070814,1712741442720,-500.0,0.00021093,2]
[322070815,1712741442726,-500.0,0.00021093,2]
[322070816,1712741442734,-500.0,0.00021093,2]
[322070817,1712741442741,-500.0,0.00021093,2]
[322070818,1712741442748,-233.57678492,0.00021093,2]
[322070819,1712741442756,-500.0,0.00021093,2]
[322070820,1712741442763,-500.0,0.00021093,2]
[322070821,1712741442770,-500.0,0.00021093,2]
[322070822,1712741442777,-500.0,0.00021093,2]
[322070823,1712741442785,-500.0,0.00021093,2]
[322070824,1712741442792,-500.0,0.00021093,2]
[322070825,1712741442799,-500.0,0.00021093,2]
[322070826,1712741442808,-267.38058099,0.00021098,2]
[322070827,1712741442814,-500.0,0.00021098,2]
[322070828,1712741442821,-500.0,0.00021098,2]
[322070829,1712741442828,-3031.32136936,0.00021192,2]
[322070830,1712741442835,-150.0,0.000212,2]
[322070831,1712741442841,-500.0,0.00021251,2]
[322070832,1712741442848,-1162.63,0.0002129,2]
[322070833,1712741442855,-500.0,0.00021367,2]
[322070834,1712741442862,-500.0,0.00021367,2]
[322070835,1712741442869,-500.0,0.00021367,2]
[322070836,1712741442876,-210.63523047,0.00021367,2]
[322070837,1712741442883,-500.0,0.00021367,2]
[322070838,1712741442891,-500.0,0.00021367,2]
[322070839,1712741442897,-500.0,0.00021367,2]
[322070840,1712741442904,-500.0,0.00021367,2]
[322070841,1712741442911,-1394.2,0.00021367,2]
[322070842,1712741442919,-500.0,0.00021367,2]
[322070843,1712741442926,-500.0,0.00021367,2]
[322070844,1712741442932,-373.24512446,0.00021367,2]
[322070845,1712741442938,-500.0,0.00021367,2]
[322070846,1712741442945,-500.0,0.00021367,2]
[322070847,1712741442952,-2169.83,0.00021367,2]
[322070848,1712741442959,-500.0,0.00021367,2]
[322070849,1712741442966,-500.0,0.00021367,2]
[322070850,1712741442974,-500.0,0.00021367,2]
[322070851,1712741442980,-500.0,0.00021367,2]
[322070852,1712741442987,-856.91,0.00021367,2]
[322070853,1712741442994,-500.0,0.00021367,2]
[322070854,1712741443001,-500.0,0.00021367,2]
[322070855,1712741443011,-500.0,0.00021367,2]
[322070856,1712741443017,-500.0,0.00021367,2]
[322070857,1712741443024,-416.71988331,0.00021367,2]
[322070858,1712741443031,-500.0,0.00021367,2]
[322070861,1712741443038,-546.74,0.00021367,2]
[322070863,1712741443047,-500.0,0.00021367,2]
[322070865,1712741443055,-512.52691201,0.00021367,2]
[322070867,1712741443064,-500.0,0.00021367,2]
[322070869,1712741443073,-265.46353841,0.00021367,2]
[322070871,1712741443082,-500.0,0.00021367,2]
[322070873,1712741443092,-500.0,0.00021367,2]
[322070876,1712741443101,-500.0,0.00021367,2]
[322070878,1712741443110,-500.0,0.00021367,2]
[322070881,1712741443118,-500.0,0.00021367,2]
[322070883,1712741443127,-500.0,0.00021367,2]
[322070885,1712741443136,-500.0,0.00021367,2]
[322070887,1712741443145,-428.7583633,0.00021372,2]
[322070889,1712741443154,-500.0,0.00021372,2]
[322070890,1712741443163,-3031.32136937,0.00021518,2]
[322070891,1712741443171,-500.0,0.00021525,2]
[322070892,1712741443180,-154.56262454,0.0002153,2]
[322070893,1712741443189,-169.66,0.00021531,2]
[322070894,1712741443197,-500.0,0.00021641,2]
[322070895,1712741443206,-500.0,0.00021641,2]
[322070896,1712741443216,-500.0,0.00021641,2]
[322070897,1712741443225,-500.0,0.00021641,2]
[322070898,1712741443233,-500.0,0.00021641,2]
[322070899,1712741443242,-500.0,0.00021641,2]
[322070900,1712741443251,-500.0,0.00021641,2]
[322070901,1712741443261,-1394.2,0.00021641,2]
[322070902,1712741443270,-500.0,0.00021641,2]
[322070903,1712741443279,-500.0,0.00021641,2]
[322070904,1712741443288,-500.0,0.00021641,2]
[322070905,1712741443297,-500.0,0.00021641,2]
[322070906,1712741443306,-2169.83,0.00021641,2]
[322070907,1712741443316,-500.0,0.00021641,2]
[322070908,1712741443325,-500.0,0.00021641,2]
[322070909,1712741443335,-500.0,0.00021641,2]
[322070910,1712741443522,-500.0,0.00021641,2]
[322070911,1712741443532,-856.91,0.00021641,2]
[322070912,1712741443541,-500.0,0.00021641,2]
[322070913,1712741443550,-500.0,0.00021641,2]
[322070914,1712741443559,-185.27683372,0.00021641,2]
[322070915,1712741443569,-500.0,0.00021641,2]
[322070916,1712741443578,-500.0,0.00021641,2]
[322070917,1712741443587,-546.74,0.00021641,2]
[322070918,1712741443597,-500.0,0.00021641,2]
[322070919,1712741443607,-500.0,0.00021641,2]
[322070920,1712741443616,-500.0,0.00021641,2]
[322070921,1712741443626,-500.0,0.00021641,2]
[322070922,1712741443635,-500.0,0.00021641,2]
[322070923,1712741443647,-500.0,0.00021641,2]
[322070924,1712741443656,-500.0,0.00021641,2]
[322070925,1712741443665,-305.72549154,0.00021641,2]
[322070926,1712741443675,-500.0,0.00021641,2]
[322070927,1712741443684,-500.0,0.00021646,2]
[322070928,1712741443694,-150.0,0.000217,2]
[322070929,1712741443704,-682.0,0.00021753,2]
[322070930,1712741443714,-151.23,0.00021789,2]
[322070931,1712741443723,-500.0,0.00021799,2]
[322070932,1712741443733,-200.0,0.00021877,2]
[322070933,1712741443742,-1250.0,0.000219,2]
[322070934,1712741443752,-500.0,0.00021915,2]
[322070935,1712741443763,-500.0,0.00021915,2]
[322070936,1712741443773,-500.0,0.00021915,2]
[322070937,1712741443782,-500.0,0.00021915,2]
[322070938,1712741443793,-500.0,0.00021915,2]
[322070939,1712741443802,-500.0,0.00021915,2]
[322070940,1712741443812,-500.0,0.00021915,2]
[322070941,1712741443823,-1394.2,0.00021915,2]
[322070942,1712741443832,-500.0,0.00021915,2]
[322070943,1712741443842,-500.0,0.00021915,2]
[322070944,1712741443852,-500.0,0.00021915,2]
[322070945,1712741443861,-500.0,0.00021915,2]
[322070946,1712741443871,-1747.36739759,0.00021915,2]
[322070947,1712741444149,-261.12216649,0.00020819,2]
[322070948,1712741444159,-422.46260241,0.00021915,2]
[322070949,1712741444168,-500.0,0.00021915,2]
[322070950,1712741444177,-630.62530584,0.00021915,2]
[322070951,1712741444186,-173.89971802,0.00021915,2]
[322070952,1712741444196,-383.02843611,0.00021915,2]
[322070953,1712741444205,-856.91,0.00021915,2]
[322070954,1712741444215,-440.0639826,0.00021915,2]
[322070955,1712741444224,-500.0,0.00021915,2]
[322070956,1712741444233,-500.0,0.00021915,2]
[322070957,1712741444243,-500.0,0.00021915,2]
[322070958,1712741444252,-546.74,0.00021915,2]
[322070959,1712741444261,-500.0,0.00021915,2]
[322070960,1712741444270,-500.0,0.00021915,2]
[322070961,1712741444280,-500.0,0.00021915,2]
[322070962,1712741444289,-500.0,0.00021915,2]
[322070963,1712741444299,-500.0,0.00021915,2]
[322070964,1712741444308,-173.23682384,0.00021915,2]
[322070965,1712741444318,-500.0,0.00021915,2]
[322070966,1712741444327,-500.0,0.00021915,2]
[322070967,1712741444337,-250.0,0.00021918,2]
[322070968,1712741444346,-250.0,0.00021918,2]
[322070969,1712741444356,-224.71,0.00021918,2]
[322070970,1712741444366,-500.0,0.0002192,2]
[322070971,1712741444375,-783.68958544,0.00022,2]
[322070972,1712741444384,-562.65039884,0.00022,2]
[322070973,1712741444393,-154.56262454,0.00022072,2]
[322070974,1712741444403,-500.0,0.00022073,2]
[322070975,1712741444413,-189.88,0.000221,2]
[322070976,1712741444423,-500.0,0.00022189,2]
[322070977,1712741444433,-500.0,0.00022189,2]
[322070978,1712741444445,-500.0,0.00022189,2]
[322070979,1712741444455,-500.0,0.00022189,2]
[322070980,1712741444465,-500.0,0.00022189,2]
[322070981,1712741444475,-500.0,0.00022189,2]
[322070982,1712741444485,-500.0,0.00022189,2]
[322070983,1712741444494,-1394.2,0.00022189,2]
[322070984,1712741444504,-500.0,0.00022189,2]
[322070985,1712741444516,-500.0,0.00022189,2]
[322070986,1712741444526,-500.0,0.00022189,2]
[322070987,1712741444536,-500.0,0.00022189,2]
[322070988,1712741444546,-2169.83,0.00022189,2]
[322070989,1712741444555,-500.0,0.00022189,2]
[322070990,1712741444565,-856.91,0.00022189,2]
[322070991,1712741444576,-500.0,0.00022189,2]
[322070992,1712741444586,-500.0,0.00022189,2]
[322070993,1712741444595,-500.0,0.00022189,2]
[322070994,1712741444606,-546.74,0.00022189,2]
[322070995,1712741444615,-500.0,0.00022189,2]
[322070996,1712741444625,-596.58280525,0.00022189,2]
[322070997,1712741444634,-500.0,0.00022189,2]
[322070998,1712741444644,-332.04726149,0.00022189,2]
[322070999,1712741444654,-500.0,0.00022189,2]
[322071000,1712741444663,-224.18931345,0.00022189,2]
[322071001,1712741444673,-500.0,0.00022189,2]
[322071002,1712741444683,-500.0,0.00022194,2]
[322071003,1712741444692,-150.0,0.000222,2]
[322071004,1712741444702,-200.0,0.00022225,2]
[322071005,1712741444712,-800.0,0.00022225,2]
[322071006,1712741444722,-500.0,0.00022225,2]
[322071007,1712741444731,-180.0,0.00022301,2]
[322071008,1712741444740,-500.0,0.00022347,2]
[322071009,1712741444750,-293.0,0.00022445,2]
[322071010,1712741444761,-500.0,0.00022463,2]
[322071011,1712741444770,-500.0,0.00022463,2]
[322071012,1712741444779,-585.9055235,0.00022463,2]
[322071013,1712741444789,-500.0,0.00022463,2]
[322071014,1712741444798,-500.0,0.00022463,2]
[322071015,1712741444808,-387.13576453,0.00022463,2]
[322071016,1712741444817,-180.66985578,0.00022463,2]
[322071017,1712741444826,-1394.2,0.00022463,2]
[322071018,1712741444836,-500.0,0.00022463,2]
[322071019,1712741444845,-500.0,0.00022463,2]
[322071020,1712741444855,-343.12302462,0.00022463,2]
[322071021,1712741444864,-500.0,0.00022463,2]
[322071022,1712741444873,-2169.83,0.00022463,2]
[322071023,1712741444883,-500.0,0.00022463,2]
[322071024,1712741444892,-856.91,0.00022463,2]
[322071025,1712741444902,-500.0,0.00022463,2]
[322071026,1712741444911,-500.0,0.00022463,2]
[322071027,1712741444920,-500.0,0.00022463,2]
[322071028,1712741444930,-546.74,0.00022463,2]
[322071029,1712741444939,-287.05118024,0.00022463,2]
[322071030,1712741444949,-500.0,0.00022463,2]
[322071031,1712741444959,-500.0,0.00022463,2]
[322071032,1712741444968,-500.0,0.00022463,2]
[322071033,1712741444978,-500.0,0.00022468,2]
[322071034,1712741444988,-154.56262454,0.00022615,2]
[322071035,1712741444997,-500.0,0.00022621,2]
[322071036,1712741445007,-150.0,0.000227,2]
[322071037,1712741445016,-500.0,0.00022737,2]
[322071038,1712741445025,-500.0,0.00022737,2]
[322071039,1712741445035,-500.0,0.00022737,2]
[322071040,1712741445045,-500.0,0.00022737,2]
[322071041,1712741445055,-1394.2,0.00022737,2]
[322071042,1712741445065,-500.0,0.00022737,2]
[322071043,1712741445075,-500.0,0.00022737,2]
[322071044,1712741445084,-500.0,0.00022737,2]
[322071045,1712741445095,-2169.83,0.00022737,2]
[322071046,1712741445104,-500.0,0.00022737,2]
[322071047,1712741445114,-856.91,0.00022737,2]
[322071048,1712741445123,-500.0,0.00022737,2]
[322071049,1712741445132,-500.0,0.00022737,2]
[322071050,1712741445142,-500.0,0.00022737,2]
[322071051,1712741445151,-546.74,0.00022737,2]
[322071052,1712741445161,-500.0,0.00022737,2]
[322071053,1712741445170,-500.0,0.00022737,2]
[322071054,1712741445180,-500.0,0.00022737,2]
[322071055,1712741445190,-500.0,0.00022742,2]
[322071056,1712741445199,-1000.0,0.00022821,2]
[322071057,1712741445209,-500.0,0.00022895,2]
[322071058,1712741445218,-682.0,0.00022986,2]
[322071059,1712741445228,-307.07035254,0.00023,2]
[322071060,1712741445238,-300.0,0.00023,3]
[322071061,1712741445247,-500.0,0.00023011,2]
[322071062,1712741445256,-500.0,0.00023011,2]
[322071063,1712741445266,-529.82009958,0.00023011,2]
[322071064,1712741445276,-500.0,0.00023011,2]
[322071065,1712741445285,-1394.2,0.00023011,2]
[322071066,1712741445294,-314.92566578,0.00023011,2]
[322071067,1712741445303,-500.0,0.00023011,2]
[322071068,1712741445312,-313.40172884,0.00023011,2]
[322071069,1712741445321,-2169.83,0.00023011,2]
[322071070,1712741445331,-500.0,0.00023011,2]
[322071071,1712741445340,-856.91,0.00023011,2]
[322071072,1712741445350,-500.0,0.00023011,2]
[322071073,1712741445359,-500.0,0.00023011,2]
[322071074,1712741445368,-500.0,0.00023011,2]
[322071075,1712741445378,-546.74,0.00023011,2]
[322071076,1712741445387,-521.73458814,0.00023011,2]
[322071077,1712741445396,-500.0,0.00023011,2]
[322071078,1712741445405,-500.0,0.00023011,2]
[322071079,1712741445415,-500.0,0.00023016,2]
[322071080,1712741445424,-154.56262454,0.00023157,2]
[322071081,1712741445434,-495.39065139,0.00023169,2]
[322071082,1712741445444,-182.68,0.00023188,2]
[322071083,1712741445455,-150.0,0.000232,2]
[322071084,1712741445464,-1000.0,0.00023229,2]
[322071085,1712741445473,-500.0,0.00023285,2]
[322071086,1712741445483,-500.0,0.00023285,2]
[322071087,1712741445492,-500.0,0.00023285,2]
[322071088,1712741445501,-1394.2,0.00023285,2]
[322071089,1712741445510,-500.0,0.00023285,2]
[322071090,1712741445521,-2169.83,0.00023285,2]
[322071091,1712741445530,-500.0,0.00023285,2]
[322071092,1712741445540,-856.91,0.00023285,2]
[322071093,1712741445549,-500.0,0.00023285,2]
[322071094,1712741445558,-500.0,0.00023285,2]
[322071095,1712741445567,-500.0,0.00023285,2]
[322071096,1712741445577,-546.74,0.00023285,2]
[322071097,1712741445586,-500.0,0.00023285,2]
[322071098,1712741445595,-500.0,0.00023285,2]
[322071099,1712741445604,-500.0,0.0002329,2]
[322071100,1712741445613,-706.29345,0.0002329,2]
[322071101,1712741445622,-500.0,0.00023559,2]
[322071102,1712741445631,-500.0,0.00023559,2]
[322071103,1712741445641,-500.0,0.00023559,2]
[322071104,1712741445650,-1394.2,0.00023559,2]
[322071105,1712741445659,-500.0,0.00023559,2]
[322071106,1712741445668,-2169.83,0.00023559,2]
[322071107,1712741445677,-500.0,0.00023559,2]
[322071108,1712741445686,-856.91,0.00023559,2]
[322071109,1712741445695,-500.0,0.00023559,2]
[322071110,1712741445704,-500.0,0.00023559,2]
[322071111,1712741445713,-500.0,0.00023559,2]
[322071112,1712741445722,-546.74,0.00023559,2]
[322071113,1712741445733,-500.0,0.00023559,2]
[322071114,1712741445745,-500.0,0.00023559,2]
[322071115,1712741445756,-500.0,0.00023564,2]
[322071116,1712741445767,-154.56262454,0.000237,2]
[322071117,1712741445778,-150.0,0.000237,2]
[322071118,1712741445789,-1013.52575687,0.0002374,2]
[322071119,1712741445800,-1821.3356163,0.00023825,2]
[322071120,1712741445809,-500.0,0.00023833,2]
[322071121,1712741445819,-500.0,0.00023833,2]
[322071122,1712741445829,-500.0,0.00023833,2]
[322071123,1712741445840,-1394.2,0.00023833,2]
[322071124,1712741445850,-500.0,0.00023833,2]
[322071125,1712741445862,-2169.83,0.00023833,2]
[322071126,1712741445872,-500.0,0.00023833,2]
[322071127,1712741445884,-856.91,0.00023833,2]
[322071128,1712741445894,-500.0,0.00023833,2]
[322071129,1712741445905,-500.0,0.00023833,2]
[322071130,1712741445916,-500.0,0.00023833,2]
[322071131,1712741445927,-546.74,0.00023833,2]
[322071132,1712741445938,-500.0,0.00023833,2]
[322071133,1712741445948,-500.0,0.00023833,2]
[322071134,1712741445958,-164.43249588,0.00023838,2]
[322071135,1712741445969,-158.37092532,0.00023892,2]
[322071137,1712741445979,-500.0,0.00023901,2]
[322071139,1712741445989,-600.0,0.00023901,2]
[322071141,1712741445998,-2300.0,0.00023901,2]
[322071143,1712741446008,-500.0,0.00023901,2]
[322071145,1712741446018,-500.0,0.00023901,2]
[322071147,1712741446030,-2644.48398999,0.00023945,2]
[322071150,1712741446040,-224.62727988,0.00024,2]
[322071152,1712741446051,-454.58628101,0.00024,2]
[322071154,1712741446061,-1162.63,0.0002403,2]
[322071156,1712741446071,-156.88253272,0.0002408,2]
[322071158,1712741446082,-7266.60688887,0.00024098,2]
[322071160,1712741446092,-500.0,0.00024107,2]
[322071162,1712741446102,-500.0,0.00024107,2]
[322071165,1712741446113,-271.99335517,0.00024107,2]
[322071167,1712741446124,-1394.2,0.00024107,2]
[322071169,1712741446135,-500.0,0.00024107,2]
[322071171,1712741446146,-2169.83,0.00024107,2]
[322071173,1712741446157,-500.0,0.00024107,2]